Cogmind - Beta 11 @@@ ROGUE MODE // 2022.04.13 @ 12:57:22 Player: Momo Result: Destroyed by Enhanced Grunt with Neutron Cannon Performance ------------- Evolutions (4) 2000 Regions Visited (14) 2800 Robots Destroyed (24) 120 Value Destroyed (777) 777 Prototype IDs (14) 280 Alien Tech Used (1) 200 Bonus (673) 673 TOTAL SCORE: 6850 Bonus ------- High Alert Combat Kills 24 Follower Combat Kills 49 Met Data Miner 300 Met Imprinter 300 Cogmind --------- Core Integrity 0/850 Matter 73/300 Energy 100/100 System Corruption 2% Temperature Cool (0) Movement Core (200) Ox3 Location -6/Data Miner Parts ------- > --- POWER (1) -------- (None) > --- PROPULSION (4) --- (None) > --- UTILITY (9) ------ Medium Storage Unit Advanced Signal Interpreter Hacking Suite Hacking Suite Makeshift Hacking Suite System Shield > --- WEAPON (2) ------- (None) > --- INVENTORY (10) --- Large Storage Unit Energy Well (350) Improved Sensor Array Transmission Jammer Force Field Makeshift System Shield Ghost Barrier Greatsword Peak State ------------ > --- POWER ------------ Light Nuclear Core > --- PROPULSION ------- Aerolev Unit Aerolev Unit Aerolev Unit Aerolev Unit > --- UTILITY ---------- Large Storage Unit Experimental Sensor Array Improved Signal Interpreter Advanced Signal Interpreter Hacking Suite Makeshift Hacking Suite System Shield System Shield > --- WEAPON ----------- Greatsword > --- INVENTORY -------- Aerolev Unit Medium Storage Unit Energy Well Advanced Weight Redist. System Improved Terrain Scanner Improved Terrain Scan Processor Transmission Jammer Improved Reaction Control System Force Field Hacking Suite Heavy Rocket Launcher RU-N14's Throwing Claymores [Rating: 62] Favorites ----------- Power Light Nuclear Core Engine Light Ion Engine Power Core Light Nuclear Core Propulsion Aerolev Unit Wheel Wheel Hover Unit Aerolev Unit Flight Unit Flight Unit Utility System Shield Device Experimental Sensor Array Storage Medium Storage Unit Processor Improved Signal Interpreter Hackware System Shield Weapon Greatsword Energy Gun EM Pulse Gun Ballistic Gun Assault Rifle Launcher EMP Blaster Special Weapon RU-N14's Throwing Claymores Impact Weapon Great Maul Slashing Weapon Greatsword Piercing Weapon Makeshift Spear Build | -11 -10 -10 -10 -9 -8 -7 -7 -7 -7 -6 -6 -6 -6 -6 ------- Run | Scr Mat Min Exi Min Mat Fac Low Low Zio Pro Fac Low Low Dat Slots Evolved 8 | . . . . . 4 2 . . . . 2 . . . Power . | . . . . . . . . . . . . . . . Propulsion 2 | . . . . . 2 . . . . . . . . . Utility 6 | . . . . . 2 2 . . . . 2 . . . Weapon . | . . . . . . . . . . . . . . . Parts Attached 59 | 6 . 1 . 3 12 10 2 . 4 2 5 3 2 9 Power 3 | 1 . . . . 1 1 . . . . . . . . Engine 1 | 1 . . . . . . . . . . . . . . Core 2 | . . . . . 1 1 . . . . . . . . Reactor . | . . . . . . . . . . . . . . . Propulsion 13 | 2 . . . . 8 . . . 2 . . 1 . . Treads . | . . . . . . . . . . . . . . . Leg . | . . . . . . . . . . . . . . . Wheel 2 | 2 . . . . . . . . . . . . . . Hover 10 | . . . . . 7 . . . 2 . . 1 . . Flight 1 | . . . . . 1 . . . . . . . . . Utility 27 | 1 . 1 . . 1 8 1 . . . 5 1 2 7 Device 13 | . . 1 . . . 5 1 . . . . 1 2 3 Storage 4 | 1 . . . . 1 . . . . . 1 . . 1 Processor 3 | . . . . . . 1 . . . . 1 . . 1 Hackware 7 | . . . . . . 2 . . . . 3 . . 2 Protection . | . . . . . . . . . . . . . . . Artifact . | . . . . . . . . . . . . . . . Weapon 16 | 2 . . . 3 2 1 1 . 2 2 . 1 . 2 Energy Gun 2 | 1 . . . 1 . . . . . . . . . . Energy Cannon . | . . . . . . . . . . . . . . . Ballistic Gun 2 | 1 . . . 1 . . . . . . . . . . Ballistic Cannon . | . . . . . . . . . . . . . . . Launcher 4 | . . . . 1 . 1 . . . 1 . . . 1 Special Weapon 2 | . . . . . . . . . 1 . . . . 1 Impact Weapon 2 | . . . . . 2 . . . . . . . . . Slashing Weapon 3 | . . . . . . . 1 . 1 1 . . . . Piercing Weapon 1 | . . . . . . . . . . . . 1 . . Special Melee Weapon . | . . . . . . . . . . . . . . . Unidentified Prototypes 4 | . . 1 . . 1 . . . 1 . . . 1 . Parts Lost 17 | . . . . 2 . . . . . . 1 2 . 12 Power 1 | . . . . . . . . . . . . . . 1 Propulsion 5 | . . . . . . . . . . . . 1 . 4 Utility 7 | . . . . . . . . . . . 1 1 . 5 Weapon 4 | . . . . 2 . . . . . . . . . 2 Highest Loss Streak 7 | . . . . 2 . . . . . . 1 1 . 7 To Critical Strikes . | . . . . . . . . . . . . . . . Average Slot Usage (%) 88 | . 85 85 85 83 65 97 97 92 92 92 90 85 87 75 Engine 3 | . 14 14 14 14 2 . . . . . . . . . Core 5 | . . . . . 6 7 7 7 7 7 6 6 6 2 Wheel 6 | . 28 28 28 28 5 . . . . . . . . . Hover 21 | . . . . . 20 30 30 30 30 30 26 26 25 12 Device 8 | . . . . . . 15 15 15 15 15 6 6 9 6 Storage 8 | . 14 14 14 14 9 7 7 7 7 7 6 6 6 6 Processor 4 | . . . . . . 7 7 7 7 7 6 6 6 8 Hackware 13 | . . . . . . 12 15 15 15 15 30 26 25 29 Energy Gun 3 | . 14 14 14 12 2 . . . . . . . . . Ballistic Gun 3 | . 14 14 14 12 9 . . . . . . . . . Launcher 1 | . . . . 1 . 6 4 . . . . . . 1 Impact Weapon 1 | . . . . . 6 7 4 . . . . . . . Slashing Weapon 2 | . . . . . . . 2 7 6 6 6 2 . . Naked Turns . | . . . . . . . . . . . . . . . Heaviest Build 37 | 12 12 12 12 12 21 25 25 22 25 22 32 31 30 37 Greatest Support 41 | 20 20 20 20 20 32 41 32 32 32 32 32 32 32 32 Greatest Overweight (x) 3 | 1 . . . . . . . . . . . . . 3 Average Overweight (x) . | . . . . . . . . . . . . . . . Largest Inventory Capacity 15 | 8 8 8 8 8 10 10 10 10 10 10 15 15 15 15 Average Capacity 10 | 7 8 8 8 8 8 10 10 10 10 10 14 15 15 13 Most Carried 15 | . 1 6 6 7 10 10 10 10 10 10 12 14 15 15 Average Carried 9 | . . 2 6 5 8 9 9 10 9 9 10 12 14 11 Final Capacity 15 | 8 8 8 8 8 10 10 10 10 10 10 15 15 15 10 Final Carried 15 | . 1 6 6 7 10 10 10 10 10 10 12 13 15 9 Class Distribution -------------------- 42% | Hacker-Scout 29% | Mutant 23% | Hacker-Mutant Dominant Class ---------------- Mutant | -10/Materials Mutant | -10/Mines Mutant | -10/Exiles Mutant | -9/Mines Mutant | -8/Materials Hacker-Scout | -7/Factory Hacker-Scout | -7/Lower Caves Hacker-Scout | -7/Lower Caves Hacker-Scout | -7/Zion Hacker-Scout | -6/Proximity Caves Hacker-Mutant | -6/Factory Hacker-Mutant | -6/Lower Caves Hacker-Mutant | -6/Lower Caves Hacker-Mutant | -6/Data Miner Resources | -11 -10 -10 -10 -9 -8 -7 -7 -7 -7 -6 -6 -6 -6 -6 ----------- Run | Scr Mat Min Exi Min Mat Fac Low Low Zio Pro Fac Low Low Dat Matter Collected 1050 | 99 . 325 . 106 . 179 44 19 79 17 53 30 99 . Remotely . | . . . . . . . . . . . . . . . Salvage Created 575 | . . 29 . 161 . 214 . . . 91 53 . . 27 Parts 39 | . . 2 . 12 . 13 . . . 8 3 . . 1 Haulers Intercepted . | . . . . . . . . . . . . . . . Recyclers Shooed . | . . . . . . . . . . . . . . . Parts Field Recycled . | . . . . . . . . . . . . . . . Retrieved Matter . | . . . . . . . . . . . . . . . Parts Self-Destructed 18 | . . . . . . . 2 . . 7 . 9 . . Prevented 3 | . . . . . . . 3 . . . . . . . Kills | -11 -10 -10 -10 -9 -8 -7 -7 -7 -7 -6 -6 -6 -6 -6 ------- Run | Scr Mat Min Exi Min Mat Fac Low Low Zio Pro Fac Low Low Dat Combat Hostiles Destroyed 19 | . . 2 . 4 . 8 . . . 4 . . . 1 Melee 1 | . . . . . . . . . . 1 . . . . Guns 4 | . . 2 . 2 . . . . . . . . . . Cannons 1 | . . . . . . . . . . . . . . 1 AOE 12 | . . . . 2 . 7 . . . 3 . . . . Classes Destroyed 7 | . . 1 . 4 . . . . . 1 1 . . . Worker 2 | . . . . 1 . . . . . . 1 . . . Tunneler 1 | . . . . 1 . . . . . . . . . . Watcher 1 | . . . . . . . . . . . 1 . . . Swarmer 13 | . . 2 . . . 8 . . . 3 . . . . Grunt 3 | . . . . 3 . . . . . . . . . . Brawler 1 | . . . . 1 . . . . . . . . . . Sentry 1 | . . . . . . . . . . 1 . . . . Enhanced Grunt 1 | . . . . . . . . . . . . . . 1 Best Kill Streak 6 | . . 2 . 6 . 4 . . . 3 1 . . 1 Combat Bots Only 4 | . . 2 . 4 . 4 . . . 3 . . . 1 Max Kills in Single Turn 3 | . . 1 . 3 . 3 . . . 2 1 . . 1 Gunslinging . | . . . . . . . . . . . . . . . Exploded 3 | . . . . 2 . 3 . . . 2 . . . . Melee 1 | . . . . . . . . . . 1 . . . . Uniques/NPCs Destroyed 1 | . . . . . . . . . . . . . . 1 Data Miner (-6/Data Miner) Combat | -11 -10 -10 -10 -9 -8 -7 -7 -7 -7 -6 -6 -6 -6 -6 -------- Run | Scr Mat Min Exi Min Mat Fac Low Low Zio Pro Fac Low Low Dat Damage Taken 2331 | . . 50 . 257 86 210 31 . . 112 175 166 72 1172 Core 1104 | . . . . 67 15 71 15 . . 64 19 19 45 789 Absorbed by Shields . | . . . . . . . . . . . . . . . Regen/Repaired (Parts) 11 | . . . . . . 11 . . . . . . . . Core Remaining (%) 87 | 100 . . . 73 97 . . . . 78 . . . . Volleys Fired 44 | . 2 5 1 12 . 5 . . . 4 . . . 15 Largest 2 | . 2 2 2 2 . 1 . . . 1 . . . 1 Hottest 70 | . 60 60 60 70 . 33 . . . 39 . . . 39 Shots Fired 58 | . 4 11 2 17 . 5 . . . 4 . . . 15 Gun 28 | . 4 11 2 11 . . . . . . . . . . Cannon . | . . . . . . . . . . . . . . . Launcher 28 | . . . . 6 . 5 . . . 4 . . . 13 Special 2 | . . . . . . . . . . . . . . 2 Kinetic 15 | . 2 6 1 6 . . . . . . . . . . Thermal . | . . . . . . . . . . . . . . . Explosive 25 | . . . . 6 . . . . . 4 . . . 15 Electromagnetic 18 | . 2 5 1 5 . 5 . . . . . . . . Robot Hit Streak 6 | . . 1 . 6 . 1 . . . 2 . . . 5 Robot Miss Streak 3 | . . 3 . 2 . 2 . . . 2 . . . 3 Penetration Max . | . . . . . . . . . . . . . . . Secondary Targets . | . . . . . . . . . . . . . . . Shots Hit Robots 32 | . . 3 . 12 . 2 . . . 3 3 . . 9 Core Hits 40 | . . 2 . 12 . 13 . . . 6 2 . . 5 Critical Kills . | . . . . . . . . . . . . . . . Critical Parts Destroyed . | . . . . . . . . . . . . . . . Critical Strikes . | . . . . . . . . . . . . . . . Melee Attacks 31 | . . . . . 7 9 . . . 1 11 1 1 1 Impact 16 | . . . . . 7 9 . . . . . . . . Slashing 12 | . . . . . . . . . . 1 11 . . . Piercing 3 | . . . . . . . . . . . . 1 1 1 Sneak Attacks 2 | . . . . . . . . . . . 1 . . 1 Combat Hostiles . | . . . . . . . . . . . . . . . Follow-up Attacks . | . . . . . . . . . . . . . . . Damage Inflicted 2295 | . . 33 . 468 . 388 . . . 385 240 . . 781 Guns 128 | . . 33 . 95 . . . . . . . . . . Cannons . | . . . . . . . . . . . . . . . Explosions 1687 | . . . . 373 . 330 . . . 330 . . . 654 Melee 412 | . . . . . . 58 . . . 55 240 . . 59 Ramming . | . . . . . . . . . . . . . . . Kinetic 71 | . . 10 . 61 . . . . . . . . . . Thermal 139 | . . . . . . 139 . . . . . . . . Explosive 1357 | . . . . 373 . . . . . 330 . . . 654 Electromagnetic 248 | . . 23 . 34 . 191 . . . . . . . . Impact 58 | . . . . . . 58 . . . . . . . . Slashing 363 | . . . . . . . . . . 55 240 . . 68 Piercing 59 | . . . . . . . . . . . . . . 59 Highest Corruption 2 | . 1 1 1 1 . 1 1 1 1 . 2 2 2 2 Average Corruption 1 | . 1 1 1 1 . 1 1 1 1 . 2 2 2 2 Corruption Purged . | . . . . . . . . . . . . . . . Corruption Blocked . | . . . . . . . . . . . . . . . Effects 23 | . . 3 1 1 . 1 4 2 . . 4 3 1 3 Message Errors 5 | . . 1 . . . . 1 1 . . 1 1 . . Matter Fused 9 | . . . 1 . . 1 2 . . . 2 1 . 2 Heat Flow Errors 1 | . . . . . . . . . . . . 1 . . Energy Discharges 3 | . . 1 . . . . . . . . 1 . . 1 Data Loss (minor) 1 | . . . . . . . . . . . . . 1 . Data Loss (major) 2 | . . . . . . . 1 1 . . . . . . Misfires 2 | . . 1 . 1 . . . . . . . . . . Overload Shots . | . . . . . . . . . . . . . . . Overflow Damage 132 | . . . . . . 33 . . . 18 32 . . 49 Projectiles . | . . . . . . . . . . . . . . . Explosions 18 | . . . . . . . . . . 18 . . . . Melee 114 | . . . . . . 33 . . . . 32 . . 49 Knockbacks . | . . . . . . . . . . . . . . . Impact . | . . . . . . . . . . . . . . . Kinetic . | . . . . . . . . . . . . . . . Secondary . | . . . . . . . . . . . . . . . Self-Inflicted Damage 116 | . . . . 45 . 71 . . . . . . . . Shots 3 | . . . . 2 . 1 . . . . . . . . Rammed . | . . . . . . . . . . . . . . . Targets Rammed . | . . . . . . . . . . . . . . . Kicked . | . . . . . . . . . . . . . . . Crushed . | . . . . . . . . . . . . . . . Highest Temperature 231 | . . 20 . 108 . 5 . . . . 4 231 . . Average Temperature 68 | . . 20 . 65 . 3 . . . . 4 121 . . Received Heat Transfer 192 | . . . . 105 36 . . . . 6 45 . . . Siege Activations . | . . . . . . . . . . . . . . . Robots Corrupted . | . . . . . . . . . . . . . . . Combat Hostiles . | . . . . . . . . . . . . . . . Parts Fried 1 | . . . . . . 1 . . . . . . . . Impact Corruptions 1 | . . . . . . 1 . . . . . . . . Robots Melted . | . . . . . . . . . . . . . . . Combat Hostiles . | . . . . . . . . . . . . . . . Parts Melted 1 | . . . . . . . . . . 1 . . . . Heat Transferred 100 | . . . . . . 100 . . . . . . . . Parts Sabotaged . | . . . . . . . . . . . . . . . Parts Stolen . | . . . . . . . . . . . . . . . Parts Stripped . | . . . . . . . . . . . . . . . Power Chain Reactions 1 | . . . . . . 1 . . . . . . . . Missiles Intercepted . | . . . . . . . . . . . . . . . Alert | -11 -10 -10 -10 -9 -8 -7 -7 -7 -7 -6 -6 -6 -6 -6 ------- Run | Scr Mat Min Exi Min Mat Fac Low Low Zio Pro Fac Low Low Dat Peak Influence 680 | . . 95 . 159 307 680 . . . . 161 . . . Initial 139 | . . . . . 61 139 . . . . 56 . . . Average 200 | . . 68 . 114 150 490 . . . . 79 . . . Maximum Alert Level 2 | . . . . . 1 2 . . . . . . . . Low Security (%) 72 | 100 100 100 . 100 77 12 . . . . 100 . . . Level 1 3 | . . . . . 22 . . . . . . . . . Level 2 23 | . . . . . . 87 . . . . . . . . Level 3 . | . . . . . . . . . . . . . . . Level 4 . | . . . . . . . . . . . . . . . Level 5 . | . . . . . . . . . . . . . . . High Security . | . . . . . . . . . . . . . . . Max Security . | . . . . . . . . . . . . . . . Squads Dispatched 3 | . . . . . . 2 . . . . 1 . . . Investigation 1 | . . . . . . 1 . . . . . . . . Extermination 1 | . . . . . . 1 . . . . . . . . Reinforcement 1 | . . . . . . . . . . . 1 . . . Assault . | . . . . . . . . . . . . . . . Garrison . | . . . . . . . . . . . . . . . Intercept . | . . . . . . . . . . . . . . . Searches Triggered . | . . . . . . . . . . . . . . . Construction Impeded . | . . . . . . . . . . . . . . . Haulers Reinforced . | . . . . . . . . . . . . . . . Active Scanning Responses . | . . . . . . . . . . . . . . . Cargo Convoy Interrupts . | . . . . . . . . . . . . . . . Stealth | -11 -10 -10 -10 -9 -8 -7 -7 -7 -7 -6 -6 -6 -6 -6 --------- Run | Scr Mat Min Exi Min Mat Fac Low Low Zio Pro Fac Low Low Dat Distress Signals 2 | . . . . . . . . . . . 2 . . . Communications Jammed . | . . . . . . . . . . . . . . . Distress Signals . | . . . . . . . . . . . . . . . Times Spotted 78 | . . 4 . 6 9 14 2 . . 5 23 6 5 4 Peak Tracking Total 6 | . . 3 . 4 5 5 1 . . 3 6 5 4 3 Tactical Retreats 14 | . . 1 . . 3 2 . . . . 5 1 2 . Traps | -11 -10 -10 -10 -9 -8 -7 -7 -7 -7 -6 -6 -6 -6 -6 ------- Run | Scr Mat Min Exi Min Mat Fac Low Low Zio Pro Fac Low Low Dat Traps Triggered 5 | . 1 . . . . 2 . . . . 2 . . . Indirectly . | . . . . . . . . . . . . . . . Trap Hack Attempts . | . . . . . . . . . . . . . . . Triggered . | . . . . . . . . . . . . . . . Disarmed . | . . . . . . . . . . . . . . . Reprogrammed . | . . . . . . . . . . . . . . . Reused . | . . . . . . . . . . . . . . . Traps Extracted . | . . . . . . . . . . . . . . . Installed . | . . . . . . . . . . . . . . . Triggered 5 | . . . . . . . 5 . . . . . . . Machines | -11 -10 -10 -10 -9 -8 -7 -7 -7 -7 -6 -6 -6 -6 -6 ---------- Run | Scr Mat Min Exi Min Mat Fac Low Low Zio Pro Fac Low Low Dat Machines Disabled 14 | . 1 . . . . 12 . . . . . . . 1 Max in Single Turn 11 | . 1 . . . . 11 . . . . . . . 1 Garrison Access 1 | . . . . . . 1 . . . . . . . . Machines Sabotaged . | . . . . . . . . . . . . . . . Garrisons Compromised . | . . . . . . . . . . . . . . . Overloaded Fab Kills . | . . . . . . . . . . . . . . . Hacking | -11 -10 -10 -10 -9 -8 -7 -7 -7 -7 -6 -6 -6 -6 -6 --------- Run | Scr Mat Min Exi Min Mat Fac Low Low Zio Pro Fac Low Low Dat Machines Accessed 30 | . 1 . 1 . 6 11 . 1 1 . 4 1 . 4 Terminals 16 | . 1 . . . 5 8 . . . . 2 . . . Fabricators . | . . . . . . . . . . . . . . . Repair Stations 1 | . . . . . . 1 . . . . . . . . Recycling Units 1 | . . . . . . . . . . . 1 . . . Scanalyzers 2 | . . . . . 1 1 . . . . . . . . Garrison Access 2 | . . . . . . 1 . . . . 1 . . . Total Hacks 109 | . 2 . 5 . 12 39 . 1 3 . 17 1 . 29 Successful 78 | . . . 5 . 8 22 . 1 3 . 9 1 . 29 Failed 31 | . 2 . . . 4 17 . . . . 8 . . . Catastrophic 7 | . 2 . . . 2 1 . . . . 2 . . . Database Lockouts . | . . . . . . . . . . . . . . . Manual 38 | . 2 . . . 2 22 . . . . 12 . . . Terminals 54 | . 2 . . . 7 32 . . . . 13 . . . Fabricators . | . . . . . . . . . . . . . . . Repair Stations 2 | . . . . . . 2 . . . . . . . . Recycling Units 2 | . . . . . . . . . . . 2 . . . Scanalyzers 8 | . . . . . 5 3 . . . . . . . . Garrison Access 4 | . . . . . . 2 . . . . 2 . . . Terminal Hacks 56 | . . . 5 . 5 8 . 1 3 . 4 1 . 29 Record 17 | . . . 5 . 1 . . . . . . . . 11 Part Schematic 13 | . . . . . . 1 . . 3 . . . . 9 Robot Schematic 6 | . . . . . . . . . . . . . . 6 Prototype ID Bank 3 | . . . . . . . . . . . . . . 3 Open Door 2 | . . . . . . . . 1 . . . 1 . . Branch Access Points 2 | . . . . . 1 1 . . . . . . . . Emergency Access Points 1 | . . . . . 1 . . . . . . . . . Terminal Index 2 | . . . . . 1 . . . . . 1 . . . Fabricator Index 1 | . . . . . . . . . . . 1 . . . Repair Station Index 1 | . . . . . . 1 . . . . . . . . Unreport Threat 1 | . . . . . . . . . . . 1 . . . Locate Traps 4 | . . . . . . 3 . . . . 1 . . . Hauler Manifests 1 | . . . . . 1 . . . . . . . . . Zone Layout 2 | . . . . . . 2 . . . . . . . . Fabricator Hacks . | . . . . . . . . . . . . . . . Repair Station Hacks 2 | . . . . . . 2 . . . . . . . . Scan Component 1 | . . . . . . 1 . . . . . . . . Repair 1 | . . . . . . 1 . . . . . . . . Recycling Unit Hacks 1 | . . . . . . . . . . . 1 . . . Retrieve Components 1 | . . . . . . . . . . . 1 . . . Scanalyzer 5 | . . . . . 3 2 . . . . . . . . Insert Component 2 | . . . . . 1 1 . . . . . . . . Analyze 3 | . . . . . 2 1 . . . . . . . . Garrison Access Hacks 1 | . . . . . . 1 . . . . . . . . Seal Access 1 | . . . . . . 1 . . . . . . . . Unauthorized Hacks 13 | . . . . . . 9 . . . . 4 . . . Terminals 11 | . . . . . . 9 . . . . 2 . . . Track 2 | . . . . . . 2 . . . . . . . . Assimilate 1 | . . . . . . 1 . . . . . . . . Botnet 4 | . . . . . . 2 . . . . 2 . . . Disrupt 4 | . . . . . . 4 . . . . . . . . Fabricators . | . . . . . . . . . . . . . . . Repair Stations . | . . . . . . . . . . . . . . . Recycling Units 1 | . . . . . . . . . . . 1 . . . Mask 1 | . . . . . . . . . . . 1 . . . Scanalyzers . | . . . . . . . . . . . . . . . Garrison Access 1 | . . . . . . . . . . . 1 . . . Reprogram 1 | . . . . . . . . . . . 1 . . . Data Cores Recovered . | . . . . . . . . . . . . . . . Used . | . . . . . . . . . . . . . . . Hacking Detections 16 | . 1 . . . 5 8 . . . . 2 . . . Full Trace Events 1 | . . . . . . 1 . . . . . . . . Feedback Events . | . . . . . . . . . . . . . . . Feedback Blocked . | . . . . . . . . . . . . . . . Robot Schematics Acquired 6 | . . . . . . . . . . . . . . 6 Robots Built . | . . . . . . . . . . . . . . . Authchips . | . . . . . . . . . . . . . . . Time . | . . . . . . . . . . . . . . . Total Robot Build Rating . | . . . . . . . . . . . . . . . Part Schematics Acquired 14 | . . . . . . 2 . . 3 . . . . 9 Parts Built . | . . . . . . . . . . . . . . . Authchips . | . . . . . . . . . . . . . . . Time . | . . . . . . . . . . . . . . . Total Part Build Rating . | . . . . . . . . . . . . . . . Parts Repaired 1 | . . . . . . 1 . . . . . . . . Time 136 | . . . . . . 136 . . . . . . . . Parts Recycled . | . . . . . . . . . . . . . . . Recycled Matter . | . . . . . . . . . . . . . . . Retrieved Matter . | . . . . . . . . . . . . . . . Retrieved Components . | . . . . . . . . . . . . . . . Parts Scanalyzed 1 | . . . . . 1 . . . . . . . . . Part Schematics Acquired 1 | . . . . . . 1 . . . . . . . . Parts Damaged 1 | . . . . . . 1 . . . . . . . . Bothacking | -11 -10 -10 -10 -9 -8 -7 -7 -7 -7 -6 -6 -6 -6 -6 ------------ Run | Scr Mat Min Exi Min Mat Fac Low Low Zio Pro Fac Low Low Dat Used RIF Installer . | . . . . . . . . . . . . . . . Robots Hacked . | . . . . . . . . . . . . . . . Non-combat . | . . . . . . . . . . . . . . . Combat . | . . . . . . . . . . . . . . . Robot Hacks Applied . | . . . . . . . . . . . . . . . Relay Couplers Released . | . . . . . . . . . . . . . . . Fabnet Peak Effective % . | . . . . . . . . . . . . . . . Robots Rewired . | . . . . . . . . . . . . . . . Allies Hacked . | . . . . . . . . . . . . . . . Hacks Repelled . | . . . . . . . . . . . . . . . Allies | -11 -10 -10 -10 -9 -8 -7 -7 -7 -7 -6 -6 -6 -6 -6 -------- Run | Scr Mat Min Exi Min Mat Fac Low Low Zio Pro Fac Low Low Dat Total Allies 3 | . . . . . . 1 . . 2 . . . . . Largest Group 2 | . . . . . . 1 . . 2 2 . . . . Highest-Rated Group 62 | . . . . . . 26 . . 62 62 . . . . Highest-Rated Ally 31 | . . . . . . 26 . . 31 31 . . . . Total Orders . | . . . . . . . . . . . . . . . Ally Attacks 16 | . . . . . . . . . . 16 . . . . Total Damage 189 | . . . . . . . . . . 189 . . . . Kills 1 | . . . . . . . . . . 1 . . . . Allies Corrupted . | . . . . . . . . . . . . . . . Allies Melted . | . . . . . . . . . . . . . . . Intel | -11 -10 -10 -10 -9 -8 -7 -7 -7 -7 -6 -6 -6 -6 -6 ------- Run | Scr Mat Min Exi Min Mat Fac Low Low Zio Pro Fac Low Low Dat Robot Analysis Total . | . . . . . . . . . . . . . . . Derelict Logs Recovered 9 | . . 2 . 1 . . 2 . 1 2 . . 1 . Drone Launches . | . . . . . . . . . . . . . . . Drone Recoveries . | . . . . . . . . . . . . . . . Exploration | -11 -10 -10 -10 -9 -8 -7 -7 -7 -7 -6 -6 -6 -6 -6 ------------- Run | Scr Mat Min Exi Min Mat Fac Low Low Zio Pro Fac Low Low Dat Turns Passed 3576 | 29 73 294 150 214 255 461 400 191 339 278 355 206 167 164 Spaces Moved 5956 | 25 83 342 184 183 357 940 599 400 731 537 712 396 357 110 Core 23 | 3 . . . . . . . . . . . . . 20 Treads . | . . . . . . . . . . . . . . . Legs . | . . . . . . . . . . . . . . . Wheels 902 | 22 83 342 184 183 88 . . . . . . . . . Hover 5031 | . . . . . 269 940 599 400 731 537 712 396 357 90 Flight . | . . . . . . . . . . . . . . . Fastest Speed 38 | 50 80 80 80 80 38 38 38 38 38 38 38 38 38 38 Average Speed 45 | 79 80 80 80 80 56 38 38 38 38 38 38 38 38 67 Slowest Speed 200 | 100 80 80 80 80 80 38 38 38 38 38 38 38 38 200 Overloaded Moves . | . . . . . . . . . . . . . . . Propulsion Burnouts . | . . . . . . . . . . . . . . . Robots Hopped . | . . . . . . . . . . . . . . . Cave-ins Triggered . | . . . . . . . . . . . . . . . Exploration Rate (%) 50 | 3 22 78 60 46 35 32 70 60 83 73 21 50 45 77 Regions Visited 14 Branch Regions 10 Pre-discovered Areas 6 | . . 2 . . . . . . 3 . . . . 1 Known Exits Taken 8 | . . . . . . 1 1 1 1 1 1 1 1 . Unknown Exits Taken 6 | 1 1 1 1 1 1 . . . . . . . . . Scrap Searched 25 | . . 1 . 2 . . 2 1 5 3 . 1 10 . Spaces Dug 19 | . . . . . 3 8 . . . . 7 . 1 . Terrain Destroyed 195 | . . . . 36 3 32 . . . 50 7 . 1 66 Melee 19 | . . . . . 3 8 . . . . 7 . 1 . Projectile . | . . . . . . . . . . . . . . . AOE 176 | . . . . 36 . 24 . . . 50 . . . 66 Terrain Rammed . | . . . . . . . . . . . . . . . Walls Destroyed . | . . . . . . . . . . . . . . . Machines Disabled . | . . . . . . . . . . . . . . . Actions | -11 -10 -10 -10 -9 -8 -7 -7 -7 -7 -6 -6 -6 -6 -6 --------- Run | Scr Mat Min Exi Min Mat Fac Low Low Zio Pro Fac Low Low Dat Total 6702 | 30 85 352 184 233 397 1021 772 438 792 605 774 449 386 184 Wait 531 | . . . . 34 2 29 165 39 51 58 40 47 21 45 Move 5942 | 24 82 341 183 182 356 939 598 399 730 536 711 395 356 110 Hop . | . . . . . . . . . . . . . . . Pick Up 38 | . 1 4 . 2 8 9 2 . 2 1 3 2 3 1 Fast Attach 29 | 6 . 1 . 1 8 2 1 . 2 1 3 1 3 . Attach 19 | . . . . 1 2 5 . . . 1 2 2 . 6 Detach 9 | . . 1 . . 1 1 1 . 1 1 2 . . 1 Swap 12 | . . . . 1 2 3 1 . 2 . . . . 3 Drop 34 | . . . . . 11 6 4 . 4 2 2 1 2 2 Fire 44 | . 2 5 1 12 . 5 . . . 4 . . . 15 Melee 31 | . . . . . 7 9 . . . 1 11 1 1 1 Ram . | . . . . . . . . . . . . . . . Kick . | . . . . . . . . . . . . . . . Crush . | . . . . . . . . . . . . . . . Escape Stasis 13 | . . . . . . 13 . . . . . . . . Rewire . | . . . . . . . . . . . . . . . Trap . | . . . . . . . . . . . . . . . Miscellaneous . | . . . . . . . . . . . . . . . Route ------- -11/Scrapyard -10/Materials -10/Mines (discovered 3 exits: [*Mat x2] / *Exi) -10/Exiles -9/Mines -8/Materials -7/Factory (discovered 3 exits: *Fac / *Low x2) -7/Lower Caves -7/Lower Caves -7/Zion -6/Proximity Caves -6/Factory (discovered 2 exits: Fac / *Low) -6/Lower Caves -6/Lower Caves -6/Data Miner (discovered 1 exit: [*Pro]) History --------- Turn | Location | Event 2 | -11/Scrapyard | Met Revision 17 10 | -11/Scrapyard | Discovered new exit (range 16) 30 | -11/Scrapyard | Entered Materials 71 | -10/Materials | Discovered new exit (range 16) 103 | -10/Materials | Entered Mines 159 | -10/Mines | Learned location of Mines (-9) 178 | -10/Mines | Discovered new exit (range 5) 226 | -10/Mines | Found a damaged Exp. Sensor Array with a note attached 228 | -10/Mines | Found Prototype Device 228 | -10/Mines | Identified Exp. Sensor Array 236 | -10/Mines | Learned location of Storage (-9) 271 | -10/Mines | Learned Materials terminal intel 307 | -10/Mines | Build established: Mutant 358 | -10/Mines | YI-UF0 nonchalantly dropped a Grenade Launcher on the ground 371 | -10/Mines | Discovered new exit (range 6) 393 | -10/Mines | Deemed a non-threat by the Exiles lab entrance 393 | -10/Mines | Discovered new exit (range 5) 397 | -10/Mines | Entered Exiles 397 | -10/Exiles | Found Exiles lab destroyed 540 | -10/Exiles | Discovered new exit (range 10) 547 | -10/Exiles | Entered Mines 578 | -9/Mines | Met a Derelict bent on vengeance 748 | -9/Mines | Discovered new exit (range 8) 750 | -9/Mines | Learned Materials trap positions 761 | -9/Mines | Entered Materials 761 | -8/Materials | Evolved 4 slots: Propulsion x2, Utility x2 762 | -8/Materials | Loaded intel: 3 trap records 763 | -8/Materials | Loaded intel: 12 terminal locations 994 | -8/Materials | Discovered new exit (range 5) 1016 | -8/Materials | Entered Factory 1016 | -7/Factory | Evolved 2 slots: Utility x2 1220 | -7/Factory | Identified exit to Lower Caves 1355 | -7/Factory | Discovered new exit (range 9) 1424 | -7/Factory | Repaired Broken Exp. Sensor Array 1477 | -7/Factory | Entered Lower Caves 1484 | -7/Lower Caves | Build established: Hacker-Scout 1484 | -7/Lower Caves | Learned 4 Factory zone layouts 1632 | -7/Lower Caves | Encountered a Warlord checkpoint 1873 | -7/Lower Caves | Discovered new exit (range 8) 1877 | -7/Lower Caves | Identified exit to Lower Caves 1877 | -7/Lower Caves | Entered another Lower Caves area 1893 | -7/Lower Caves | Encountered a Warlord checkpoint 2056 | -7/Lower Caves | Discovered new exit (range 7) 2068 | -7/Lower Caves | Identified exit to Zion 2068 | -7/Lower Caves | Entered Zion 2075 | -7/Zion | Given the Hacking Drone Bay 2097 | -7/Zion | System corruption cleaned by Quarantine Array 2188 | -7/Zion | Found Prototype Special Weapon 2188 | -7/Zion | Identified RU-N14's Throwing Claymores 2247 | -7/Zion | Gained Derelict followers 2277 | -7/Zion | Learned location of Warlord (-5) 2350 | -7/Zion | Discovered new exit (range 15) 2355 | -7/Zion | Identified exit to Proximity Caves 2407 | -7/Zion | Entered Proximity Caves 2407 | -6/Proximity Caves | Accompanied by 2 allies 2499 | -6/Proximity Caves | Attracted the attention of an 0b10 checkpoint 2508 | -6/Proximity Caves | Identified exit to Factory 2514 | -6/Proximity Caves | Learned 4 Factory zone layouts 2685 | -6/Proximity Caves | Entered Factory 2685 | -6/Factory | Evolved 2 slots: Utility x2 2686 | -6/Factory | Identified exit to Factory 2856 | -6/Factory | Discovered new exit (range 14) 2863 | -6/Factory | Identified exit to Lower Caves 2986 | -6/Factory | Build established: Hacker-Mutant 3040 | -6/Factory | Entered Lower Caves 3155 | -6/Lower Caves | Spotted B-75 Beast 3243 | -6/Lower Caves | Discovered new exit (range 8) 3245 | -6/Lower Caves | Identified exit to Lower Caves 3246 | -6/Lower Caves | Entered another Lower Caves area 3253 | -6/Lower Caves | Identified exit to Data Miner 3314 | -6/Lower Caves | Found Alien Artifact 3314 | -6/Lower Caves | Identified Core Expander 3314 | -6/Lower Caves | Installed Core Expander, added new Utility slot 3413 | -6/Lower Caves | Entered Data Miner 3413 | -6/Data Miner | Discovered new exit (range 6) 3421 | -6/Data Miner | Met Data Miner 3428 | -6/Data Miner | Learned location of Section 7 (-2) 3428 | -6/Data Miner | Acquired the access code to Warlord's prototype stash 3434 | -6/Data Miner | Received God Mode back door access code from Data Miner 3442 | -6/Data Miner | Destroyed Data Miner 3444 | -6/Data Miner | Found Prototype Hackware 3462 | -6/Data Miner | Data Conduit disabled 3527 | -6/Data Miner | Lost 7 parts (1p3n2u1w) 3563 | -6/Data Miner | Core integrity fell below 50% 3573 | -6/Data Miner | Core integrity fell below 20% 3577 | -6/Data Miner | Destroyed by Enhanced Grunt with Neutron Cannon Last Messages --------------- 03491_ Imp. Terrain Scanner destroyed. 03492_ The unstable cave ceiling collapses. 03493_ Imp. Reaction Control System destroyed. 03495_ The unstable cave ceiling collapses. 03496_ Hvy. Rocket Launcher destroyed. 03500_ The unstable cave ceiling collapses. 03500_ Enhanced Grunt destroyed. 03502_ Dropped RU-N14's Throwing Claymores. 03507_ The unstable cave ceiling collapses. 03529_ Discarded Imp. Terrain Scan Processor. 03534_ System corrupted: Energy discharge (-14). 03535_ The unstable cave ceiling collapses. 03547_ Aerolev Unit destroyed. 03547_ Adv. Weight Redist. System destroyed. 03550_ The unstable cave ceiling collapses. 03561_ Hacking Suite destroyed. 03566_ The unstable cave ceiling collapses. 03570_ System corrupted: Matter fused (-6). 03572_ Mak. Spear destroyed. 03572_ System Shield destroyed. Map ----- +----------------------------------------------------+ | | | | | | | | | | | | | | | | | | | | | | | | | | | | | ????????????????????????????????????????????????? | | ????????????????????????????????????????????????? | | ????????????????????????????????????????????????? | | ????????????#???????????????????????????????????? | | ?????????????####?##???#?????????????####???????? | | ??????######## ## #?????##?#?????### #???????? | | ??????""""""""" ###### # #?#?### #???????? | | ?????"""""""" " " "# # # # ## < ##???????? | | ????""""""""" ######??? | | ???""""""" g #??? | | ????"""""" #??? | | ????"""""% ! @ #??? | | ????"""""" g ##??? | | ????"""""" """"""""""""""""#####???? | | ???"""""""" "###############???????? | | ???#?"""""" ##?????????????????????? | | ??????""""""" ### #??#?#?????????????????? | | ???#??######"# # ##???#??????????????????? | | ????????#?##" # # #???#??????????????????? | | ??###??????#" # g #??????????????????????? | | ???????##??#"# ### #?###??????????????????? | | ???#??#??###"# # #??????????????????????? | | ???#?"??"????# ###???#??????????????????? | | ????"???""???## ###??#??#??????????????????? | | ?????"???????# ###?#??#???????????????????? | | ???#???"????"## ###??#?????????????????????? | | ??????"???##"## #####??#??????????????????? | | ?##?????#"##"# " #?#???????????????????????? | | ?##?????#"""""" "#####?#?##?????????????????? | | ?#??##???#""""" """""?##????????????????????? | | ???##????###"#" | "##"#???????????????????????? | | ???#???#???#"## X""""#?#???#?????????????????? | | ??????#??#????## "##"#?????#?????????????????? | | ????#?###??????########??##???#?????????????????? | | ???#???#???#??#?#????????????#??????????????????? | | ?#??#???#????#?#????????#?#?????????????????????? | +----------------------------------------------------+ Best States ------------- Heat Dissipation 37 Energy Generation 14 Energy Capacity 160 Matter Stores 300 Matter Capacity 300 Sight Range 16 Robot Scan Range 20 Terrain Scan Range 16 Terrain Scan Density 110 Additional Mass Support 9 Evasion (%) 67 Offensive Hacking 41 Defensive Hacking 30 Item Schematics ----------------- Exp. Sensor Array | -7/Factory | Scanalyzed Imp. Propulsion Shielding | -7/Factory | Hacked Hvy. Riot Gun | -7/Zion | Free Hvy. Battle Rifle | -7/Zion | Free Ripper | -7/Zion | Free Combat Drone Bay | -6/Data Miner | Free Lgt. Regenerative Plating | -6/Data Miner | Free Cld. Gravmag System | -6/Data Miner | Free Imp. Energy Well | -6/Data Miner | Free Hvy. Proton Missile Launcher | -6/Data Miner | Free Impulse Thruster | -6/Data Miner | Free Adv. Coolant Injector | -6/Data Miner | Free Hvy. Gauss Cannon | -6/Data Miner | Free Variable Charge Gun | -6/Data Miner | Free Robot Schematics ------------------ S-27 Virus | -6/Data Miner | Free P-70 Sage | -6/Data Miner | Free A-15 Conveyor | -6/Data Miner | Free R-10 Processor | -6/Data Miner | Free G-50 Soldier | -6/Data Miner | Free L-61 Swordsman | -6/Data Miner | Free Fabricated ------------ Nothing Alien Tech Used ----------------- Core Expander Achievements -------------- None Challenges ------------ None Game ------ Seed PrecisionCompactField Manual? 0 Play Time 01:04:22 Cumulative 243.1 hours Start 2022.04.13 @ 11:48:40 End 2022.04.13 @ 12:57:22 Sessions 1 Manual Loads 0 Difficulty Rogue Special Mode None Game No. 117 Rogue 113 Adventurer 0 Explorer 4 Win Type - Total 14 Types 4/0/2/2/1/2/3/0/0 Lore% 71 Gallery% 79 Achievement% 69 Wizard Run 0 Options --------- ASCII 0 Keyboard 0 Movement Mouse Keybinds 0 Fullscreen 1 Font 18/SmallcapsGlow Map View 76x50 Tactical HUD 1 Map Filters NONE Filters NONE Steam 1 RUN: e3096a49-0d16-4c39-b218-94dc090859da